[Event "*** SCC Grand Prix: Titled Tuesday Blitz"]
[Site "Chess.com"]
[Date "2020.07.21"]
[Round "6"]
[White "davidkalashian"]
[Black "Trickov"]
[Result "0-1"]
[WhiteElo "2521"]
[BlackElo "2378"]
[TimeControl "180+1"]
[EndTime "11:09:34 PDT"]
[Termination "Trickov won by checkmate"]

1. d4 {[%clk 0:03:00.9]} 1... d5 {[%clk 0:02:57.9]} 2. Nf3 {[%clk 0:03:00.3]}
2... Nf6 {[%clk 0:02:57.4]} 3. c4 {[%clk 0:02:59.1]} 3... c6 {[%clk 0:02:57.3]}
4. Qc2 {[%clk 0:02:58.3]} 4... g6 {[%clk 0:02:55.5]} 5. g3 {[%clk 0:02:57.1]}
5... Bg7 {[%clk 0:02:55]} 6. Bg2 {[%clk 0:02:57.1]} 6... O-O {[%clk 0:02:54.7]}
7. O-O {[%clk 0:02:57.5]} 7... Bf5 {[%clk 0:02:54.6]} 8. Qb3 {[%clk 0:02:56.6]}
8... Qb6 {[%clk 0:02:53.7]} 9. Nc3 {[%clk 0:02:56.5]} 9... dxc4 {[%clk
0:02:49.8]} 10. Qxc4 {[%clk 0:02:55.7]} 10... Nbd7 {[%clk 0:02:49]} 11. Re1
{[%clk 0:02:51.1]} 11... Ne4 {[%clk 0:02:41.1]} 12. e3 {[%clk 0:02:41.8]} 12...
Nxc3 {[%clk 0:02:37.3]} 13. bxc3 {[%clk 0:02:41.3]} 13... Be4 {[%clk 0:02:36.8]}
14. a4 {[%clk 0:02:39]} 14... Qc7 {[%clk 0:02:30.3]} 15. Ba3 {[%clk 0:02:38.1]}
15... Nb6 {[%clk 0:02:22.5]} 16. Qb3 {[%clk 0:02:27.3]} 16... Bd5 {[%clk
0:02:08.4]} 17. Qc2 {[%clk 0:02:25.5]} 17... Nc4 {[%clk 0:02:08.1]} 18. Bc1
{[%clk 0:02:20.9]} 18... Nd6 {[%clk 0:02:03.8]} 19. e4 {[%clk 0:02:18.5]} 19...
Bc4 {[%clk 0:02:02.1]} 20. Bf4 {[%clk 0:02:15.9]} 20... Qa5 {[%clk 0:01:46.6]}
21. e5 {[%clk 0:02:09.6]} 21... Ne8 {[%clk 0:01:38.3]} 22. Bg5 {[%clk
0:01:59.1]} 22... f6 {[%clk 0:01:35.1]} 23. Bf4 {[%clk 0:01:56.7]} 23... Nc7
{[%clk 0:01:26.2]} 24. exf6 {[%clk 0:01:51.1]} 24... exf6 {[%clk 0:01:25]} 25.
Re7 {[%clk 0:01:31.1]} 25... Nd5 {[%clk 0:01:19.8]} 26. Rxb7 {[%clk 0:01:29.7]}
26... Nxf4 {[%clk 0:01:18.6]} 27. gxf4 {[%clk 0:01:29.1]} 27... Rab8 {[%clk
0:01:13.7]} 28. Rxb8 {[%clk 0:01:20.9]} 28... Rxb8 {[%clk 0:01:11.6]} 29. Re1
{[%clk 0:01:16.1]} 29... Bf8 {[%clk 0:01:07]} 30. f5 {[%clk 0:01:12.5]} 30...
Qxf5 {[%clk 0:01:02.9]} 31. Qxf5 {[%clk 0:01:11]} 31... gxf5 {[%clk 0:01:02.6]}
32. Nh4 {[%clk 0:01:11.9]} 32... Rb3 {[%clk 0:00:56.5]} 33. Bxc6 {[%clk
0:01:06.8]} 33... Rxc3 {[%clk 0:00:55.3]} 34. Nxf5 {[%clk 0:00:56.7]} 34... Kf7
{[%clk 0:00:48.9]} 35. Be8+ {[%clk 0:00:44.1]} 35... Kg8 {[%clk 0:00:46.6]} 36.
Bc6 {[%clk 0:00:45]} 36... Kf7 {[%clk 0:00:46.3]} 37. Bg2 {[%clk 0:00:20]} 37...
Rd3 {[%clk 0:00:38.2]} 38. Rc1 {[%clk 0:00:17.1]} 38... Be6 {[%clk 0:00:35.4]}
39. Rc7+ {[%clk 0:00:14.7]} 39... Kg6 {[%clk 0:00:35]} 40. Ne3 {[%clk
0:00:13.4]} 40... Rxd4 {[%clk 0:00:34]} 41. Rxa7 {[%clk 0:00:12.1]} 41... Rb4
{[%clk 0:00:22.2]} 42. h3 {[%clk 0:00:11.2]} 42... Rb1+ {[%clk 0:00:20.8]} 43.
Bf1 {[%clk 0:00:11.1]} 43... Bxh3 {[%clk 0:00:18.8]} 44. Rc7 {[%clk 0:00:07.6]}
44... Bd6 {[%clk 0:00:17.9]} 45. Rc6 {[%clk 0:00:07.1]} 45... Bf4 {[%clk
0:00:16.8]} 46. Rc3 {[%clk 0:00:05.4]} 46... Bxe3 {[%clk 0:00:16.5]} 47. Rxe3
{[%clk 0:00:06.3]} 47... Rxf1+ {[%clk 0:00:16.5]} 48. Kh2 {[%clk 0:00:06.5]}
48... Bf5 {[%clk 0:00:16.7]} 49. Kg2 {[%clk 0:00:06]} 49... Ra1 {[%clk
0:00:16.5]} 50. Rg3+ {[%clk 0:00:05.8]} 50... Kf7 {[%clk 0:00:16.1]} 51. Rc3
{[%clk 0:00:06.5]} 51... Be6 {[%clk 0:00:15.9]} 52. Rc7+ {[%clk 0:00:06]} 52...
Kg6 {[%clk 0:00:15.9]} 53. Ra7 {[%clk 0:00:06.9]} 53... h5 {[%clk 0:00:15.4]}
54. Kg3 {[%clk 0:00:07.8]} 54... Kg5 {[%clk 0:00:13.9]} 55. a5 {[%clk
0:00:08.7]} 55... Bc4 {[%clk 0:00:13.1]} 56. Kg2 {[%clk 0:00:09.6]} 56... Bf1+
{[%clk 0:00:11.8]} 57. Kh2 {[%clk 0:00:09.4]} 57... h4 {[%clk 0:00:11.7]} 58.
Ra8 {[%clk 0:00:09.4]} 58... Kf5 {[%clk 0:00:11.5]} 59. Rg8 {[%clk 0:00:09.8]}
59... Rxa5 {[%clk 0:00:10.1]} 60. Rh8 {[%clk 0:00:10.3]} 60... Ra2 {[%clk
0:00:07.4]} 61. Rxh4 {[%clk 0:00:09.2]} 61... Rxf2+ {[%clk 0:00:06.6]} 62. Kg1
{[%clk 0:00:10.1]} 62... Rf3 {[%clk 0:00:05.9]} 63. Rh5+ {[%clk 0:00:09.3]}
63... Ke4 {[%clk 0:00:05.9]} 64. Ra5 {[%clk 0:00:10.2]} 64... Bd3 {[%clk
0:00:05.3]} 65. Ra4+ {[%clk 0:00:10.2]} 65... Ke3 {[%clk 0:00:05.4]} 66. Ra8
{[%clk 0:00:10.6]} 66... f5 {[%clk 0:00:05.7]} 67. Ra3 {[%clk 0:00:10.3]} 67...
f4 {[%clk 0:00:05.6]} 68. Ra8 {[%clk 0:00:11.2]} 68... Rg3+ {[%clk 0:00:03.9]}
69. Kh2 {[%clk 0:00:11.4]} 69... Rg5 {[%clk 0:00:04.5]} 70. Re8+ {[%clk
0:00:11.1]} 70... Be4 {[%clk 0:00:04]} 71. Rh8 {[%clk 0:00:11.1]} 71... Rg2+
{[%clk 0:00:04.4]} 72. Kh3 {[%clk 0:00:10.4]} 72... Rg1 {[%clk 0:00:04.8]} 73.
Re8 {[%clk 0:00:07.7]} 73... f3 {[%clk 0:00:04.9]} 74. Kh4 {[%clk 0:00:07.6]}
74... f2 {[%clk 0:00:03.7]} 75. Rf8 {[%clk 0:00:08.5]} 75... f1=Q {[%clk
0:00:03.8]} 76. Rxf1 {[%clk 0:00:08.8]} 76... Rxf1 {[%clk 0:00:04.1]} 77. Kg3
{[%clk 0:00:09.7]} 77... Bd3 {[%clk 0:00:04.4]} 78. Kg4 {[%clk 0:00:10.5]} 78...
Be4 {[%clk 0:00:04.5]} 79. Kg5 {[%clk 0:00:11.4]} 79... Rg1+ {[%clk 0:00:04.6]}
80. Kh6 {[%clk 0:00:12.3]} 80... Kf3 {[%clk 0:00:04.1]} 81. Kh5 {[%clk
0:00:12.2]} 81... Bd3 {[%clk 0:00:04.2]} 82. Kh6 {[%clk 0:00:13.1]} 82... Be2
{[%clk 0:00:04.6]} 83. Kh5 {[%clk 0:00:14]} 83... Kf4+ {[%clk 0:00:05]} 84. Kh6
{[%clk 0:00:14.9]} 84... Bd1 {[%clk 0:00:05.1]} 85. Kh7 {[%clk 0:00:15.8]} 85...
Kf5 {[%clk 0:00:05.5]} 86. Kh6 {[%clk 0:00:16.7]} 86... Kf6 {[%clk 0:00:05.5]}
87. Kh7 {[%clk 0:00:17.2]} 87... Be2 {[%clk 0:00:04.1]} 88. Kh8 {[%clk
0:00:18.1]} 88... Kf7 {[%clk 0:00:04.3]} 89. Kh7 {[%clk 0:00:19]} 89... Rh1#
{[%clk 0:00:05.2]} 0-1

[Event "*** SCC Grand Prix: Titled Tuesday Blitz"]
[Site "Chess.com"]
[Date "2020.07.21"]
[Round "6"]
[White "Zenzo"]
[Black "anon569"]
[Result "1-0"]
[WhiteElo "2553"]
[BlackElo "2310"]
[TimeControl "180+1"]
[EndTime "11:09:35 PDT"]
[Termination "Zenzo won by resignation"]

1. e4 {[%clk 0:03:00.9]} 1... c5 {[%clk 0:02:58.5]} 2. Nf3 {[%clk 0:03:01.1]}
2... d6 {[%clk 0:02:57.4]} 3. d4 {[%clk 0:03:01.5]} 3... cxd4 {[%clk 0:02:56.8]}
4. Nxd4 {[%clk 0:03:02.4]} 4... Nf6 {[%clk 0:02:55]} 5. Nc3 {[%clk 0:03:02.9]}
5... a6 {[%clk 0:02:54.8]} 6. Be3 {[%clk 0:03:03.1]} 6... e6 {[%clk 0:02:54.1]}
7. g4 {[%clk 0:03:02.3]} 7... Be7 {[%clk 0:02:51.9]} 8. g5 {[%clk 0:03:02]} 8...
Nfd7 {[%clk 0:02:51.3]} 9. h4 {[%clk 0:03:02.6]} 9... b5 {[%clk 0:02:50.9]} 10.
Qh5 {[%clk 0:03:00]} 10... Nc5 {[%clk 0:02:37.8]} 11. Bg2 {[%clk 0:02:54.2]}
11... Bb7 {[%clk 0:02:34]} 12. b4 {[%clk 0:02:44.6]} 12... g6 {[%clk 0:02:32.1]}
13. Qe2 {[%clk 0:02:29.5]} 13... Ncd7 {[%clk 0:02:28.1]} 14. h5 {[%clk
0:02:20.4]} 14... Qc7 {[%clk 0:02:17.1]} 15. Ncxb5 {[%clk 0:02:01.8]} 15... axb5
{[%clk 0:02:13]} 16. Nxb5 {[%clk 0:02:02.7]} 16... Qc8 {[%clk 0:02:06.8]} 17.
hxg6 {[%clk 0:02:02.5]} 17... fxg6 {[%clk 0:02:05]} 18. a4 {[%clk 0:01:33.6]}
18... Na6 {[%clk 0:01:49.1]} 19. c3 {[%clk 0:01:26.7]} 19... Nc7 {[%clk
0:01:25.5]} 20. Nd4 {[%clk 0:01:19.8]} 20... e5 {[%clk 0:01:16.6]} 21. Nb3
{[%clk 0:01:14.3]} 21... Ne6 {[%clk 0:01:14.3]} 22. Qd2 {[%clk 0:01:03.8]} 22...
Qd8 {[%clk 0:00:24.5]} 23. Na5 {[%clk 0:00:58.2]} 23... Rxa5 {[%clk 0:00:09.6]}
24. bxa5 {[%clk 0:00:59.1]} 24... Qxa5 {[%clk 0:00:08.5]} 25. O-O {[%clk
0:00:35.4]} 25... Ndc5 {[%clk 0:00:06.4]} 26. Rfb1 {[%clk 0:00:30.6]} 26... O-O
{[%clk 0:00:04.9]} 27. Bxc5 {[%clk 0:00:24]} 27... Nxc5 {[%clk 0:00:04.3]} 28.
Rb5 {[%clk 0:00:20.6]} 28... Qa7 {[%clk 0:00:04.4]} 29. Rab1 {[%clk 0:00:20.1]}
29... Bc6 {[%clk 0:00:04.6]} 30. R5b4 {[%clk 0:00:18.9]} 30... Nxa4 {[%clk
0:00:04.4]} 31. Qa2+ {[%clk 0:00:15.5]} 31... Kh8 {[%clk 0:00:03.3]} 32. Ra1
{[%clk 0:00:15.4]} 32... Qd7 {[%clk 0:00:03.2]} 33. Rxa4 {[%clk 0:00:14.6]}
33... Bxa4 {[%clk 0:00:03.9]} 34. Qxa4 {[%clk 0:00:15.4]} 34... Qg4 {[%clk
0:00:04.5]} 35. Qd1 {[%clk 0:00:14.2]} 35... Qxg5 {[%clk 0:00:04.5]} 36. Qd3
{[%clk 0:00:13.8]} 36... Qh4 {[%clk 0:00:04.5]} 37. Qg3 {[%clk 0:00:13.3]} 37...
Qf6 {[%clk 0:00:04.5]} 38. Rc1 {[%clk 0:00:13]} 38... Bd8 {[%clk 0:00:04.7]} 39.
Rc2 {[%clk 0:00:12]} 39... Bb6 {[%clk 0:00:05.2]} 40. c4 {[%clk 0:00:12.5]}
40... Ra8 {[%clk 0:00:05.3]} 41. Kh2 {[%clk 0:00:11.8]} 41... Ra1 {[%clk
0:00:05.2]} 42. Bf3 {[%clk 0:00:11.4]} 42... Ra8 {[%clk 0:00:04.2]} 43. Kg2
{[%clk 0:00:11.6]} 43... h5 {[%clk 0:00:04.4]} 44. Rd2 {[%clk 0:00:11.4]} 44...
Kh7 {[%clk 0:00:04.7]} 45. Qh3 {[%clk 0:00:10]} 45... Bc5 {[%clk 0:00:05.1]} 46.
Qd7+ {[%clk 0:00:09.3]} 46... Kh6 {[%clk 0:00:04.8]} 47. Rd1 {[%clk 0:00:09.1]}
47... Rf8 {[%clk 0:00:05.1]} 48. Qh3 {[%clk 0:00:08.4]} 48... Qg5+ {[%clk
0:00:05.5]} 49. Qg3 {[%clk 0:00:08.9]} 49... Qf6 {[%clk 0:00:05.5]} 50. Qh3
{[%clk 0:00:08.6]} 50... Qe7 {[%clk 0:00:05.3]} 51. Qg3 {[%clk 0:00:09]} 51...
Rf4 {[%clk 0:00:05.6]} 52. Rg1 {[%clk 0:00:08.3]} 52... Qf6 {[%clk 0:00:06.1]}
53. Kf1 {[%clk 0:00:08.6]} 53... g5 {[%clk 0:00:06.2]} 54. Ke2 {[%clk
0:00:08.5]} 54... g4 {[%clk 0:00:06.4]} 55. Rh1 {[%clk 0:00:08.1]} 55... Rxf3
{[%clk 0:00:06]} 56. Qxg4 {[%clk 0:00:08.6]} 56... Rxf2+ {[%clk 0:00:06]} 57.
Ke1 {[%clk 0:00:09.2]} 57... Qg5 {[%clk 0:00:03.1]} 58. Qe6+ {[%clk 0:00:08.2]}
58... Rf6 {[%clk 0:00:03.2]} 59. Qe7 {[%clk 0:00:08.2]} 59... Qe3+ {[%clk
0:00:03.2]} 60. Kd1 {[%clk 0:00:08.3]} 60... Qf3+ {[%clk 0:00:03.4]} 61. Kc2
{[%clk 0:00:08.5]} 61... Qxe4+ {[%clk 0:00:03.3]} 62. Kb3 {[%clk 0:00:08.8]}
62... Qg6 {[%clk 0:00:01.5]} 63. Kb2 {[%clk 0:00:09.7]} 63... Rf7 {[%clk
0:00:02.1]} 64. Rxh5+ {[%clk 0:00:10.1]} 64... Kg7 {[%clk 0:00:02.7]} 65. Qh4
{[%clk 0:00:08.4]} 65... Rf2+ {[%clk 0:00:01.4]} 66. Kb3 {[%clk 0:00:08.8]}
66... Rf7 {[%clk 0:00:02]} 67. Rg5 {[%clk 0:00:08.6]} 67... e4 {[%clk
0:00:02.6]} 68. Rxg6+ {[%clk 0:00:08.8]} 68... Kxg6 {[%clk 0:00:03.2]} 69. Qxe4+
{[%clk 0:00:09.2]} 69... Rf5 {[%clk 0:00:02.4]} 70. Ka4 {[%clk 0:00:08.4]} 70...
Kf6 {[%clk 0:00:02.7]} 71. Kb5 {[%clk 0:00:08.6]} 71... Re5 {[%clk 0:00:03.2]}
72. Qh4+ {[%clk 0:00:08.6]} 72... Ke6 {[%clk 0:00:03.7]} 73. Kc6 {[%clk
0:00:08.9]} 73... Be3 {[%clk 0:00:03.1]} 74. Qg4+ {[%clk 0:00:08.5]} 74... Kf6
{[%clk 0:00:03.1]} 75. Qh4+ {[%clk 0:00:07.9]} 75... Ke6 {[%clk 0:00:02.9]} 76.
Qh3+ {[%clk 0:00:06.6]} 76... Kf6 {[%clk 0:00:03.1]} 77. Qf3+ {[%clk 0:00:06.9]}
77... Ke6 {[%clk 0:00:02.3]} 78. Qg4+ {[%clk 0:00:06.8]} 78... Kf6 {[%clk
0:00:02.3]} 79. Kxd6 {[%clk 0:00:06.5]} 79... Bc5+ {[%clk 0:00:01.8]} 80. Kc6
{[%clk 0:00:06.4]} 80... Be7 {[%clk 0:00:01.9]} 81. Qf4+ {[%clk 0:00:05.8]}
81... Ke6 {[%clk 0:00:01.8]} 82. Qg4+ {[%clk 0:00:05]} 82... Kf6 {[%clk
0:00:01.6]} 83. Kb6 {[%clk 0:00:05.3]} 83... Rc5 {[%clk 0:00:01.9]} 84. Qd4+
{[%clk 0:00:04.4]} 84... Ke6 {[%clk 0:00:02.2]} 85. Qxc5 {[%clk 0:00:04.9]}
85... Bxc5+ {[%clk 0:00:02.8]} 86. Kxc5 {[%clk 0:00:05.7]} 86... Kd7 {[%clk
0:00:03]} 87. Kb6 {[%clk 0:00:06.1]} 87... Kc8 {[%clk 0:00:02.7]} 88. Kc6 {[%clk
0:00:06.5]} 88... Kb8 {[%clk 0:00:03.3]} 89. Kd7 {[%clk 0:00:06.9]} 89... Kb7
{[%clk 0:00:03.5]} 90. c5 {[%clk 0:00:07.8]} 1-0

[Event "*** SCC Grand Prix: Titled Tuesday Blitz"]
[Site "Chess.com"]
[Date "2020.07.21"]
[Round "6"]
[White "queen_iryna"]
[Black "marianokar"]
[Result "0-1"]
[WhiteElo "2272"]
[BlackElo "2428"]
[TimeControl "180+1"]
[EndTime "11:09:41 PDT"]
[Termination "marianokar won by resignation"]

1. d4 {[%clk 0:03:00.9]} 1... Nf6 {[%clk 0:02:59.2]} 2. Nc3 {[%clk 0:02:59.1]}
2... d5 {[%clk 0:02:51.2]} 3. Bf4 {[%clk 0:02:59.3]} 3... e6 {[%clk 0:02:45.3]}
4. e3 {[%clk 0:02:59.3]} 4... a6 {[%clk 0:02:44.5]} 5. Nf3 {[%clk 0:02:58.9]}
5... Nbd7 {[%clk 0:02:43.5]} 6. Ne5 {[%clk 0:02:57.7]} 6... c5 {[%clk
0:02:42.7]} 7. Qf3 {[%clk 0:02:44.9]} 7... b5 {[%clk 0:02:38.5]} 8. g4 {[%clk
0:02:28.9]} 8... b4 {[%clk 0:02:34.9]} 9. Na4 {[%clk 0:02:26.3]} 9... Nxe5
{[%clk 0:02:24.2]} 10. Bxe5 {[%clk 0:02:19.3]} 10... Nd7 {[%clk 0:02:18.7]} 11.
Bg3 {[%clk 0:02:10.2]} 11... Bb7 {[%clk 0:02:13.3]} 12. Bg2 {[%clk 0:02:00.8]}
12... cxd4 {[%clk 0:00:50.6]} 13. exd4 {[%clk 0:01:59.6]} 13... Bc6 {[%clk
0:00:51]} 14. b3 {[%clk 0:01:47.1]} 14... Bb5 {[%clk 0:00:45]} 15. c4 {[%clk
0:01:40.7]} 15... bxc3 {[%clk 0:00:36.2]} 16. Nxc3 {[%clk 0:01:37.9]} 16... Bb4
{[%clk 0:00:35.4]} 17. a3 {[%clk 0:01:37.3]} 17... Qa5 {[%clk 0:00:35.4]} 18.
Kd2 {[%clk 0:01:27]} 18... Be7 {[%clk 0:00:34.5]} 19. b4 {[%clk 0:01:24.4]}
19... Qb6 {[%clk 0:00:34.1]} 20. Nxb5 {[%clk 0:01:16.7]} 20... axb5 {[%clk
0:00:32.9]} 21. Qd3 {[%clk 0:01:07.5]} 21... O-O {[%clk 0:00:30.6]} 22. h4
{[%clk 0:01:05]} 22... Bf6 {[%clk 0:00:29.9]} 23. Ke3 {[%clk 0:00:54.7]} 23...
Rfc8 {[%clk 0:00:25.5]} 24. Rhc1 {[%clk 0:00:44.5]} 24... Rxc1 {[%clk
0:00:19.9]} 25. Rxc1 {[%clk 0:00:45.4]} 25... Bxd4+ {[%clk 0:00:18]} 26. Ke2
{[%clk 0:00:45.2]} 26... Be5 {[%clk 0:00:16]} 27. Bxe5 {[%clk 0:00:39.5]} 27...
Nxe5 {[%clk 0:00:16.9]} 28. Qc3 {[%clk 0:00:39.9]} 28... Nc4 {[%clk 0:00:16.5]}
29. Kf1 {[%clk 0:00:22.2]} 29... h6 {[%clk 0:00:13.7]} 30. Ra1 {[%clk
0:00:20.3]} 30... Ra4 {[%clk 0:00:13.2]} 31. Ra2 {[%clk 0:00:19.7]} 31... Qa6
{[%clk 0:00:11.7]} 32. g5 {[%clk 0:00:19.7]} 32... Rxa3 {[%clk 0:00:11.5]} 33.
Rxa3 {[%clk 0:00:19.5]} 33... Qxa3 {[%clk 0:00:12.4]} 34. Qd4 {[%clk 0:00:19.1]}
34... Qc1+ {[%clk 0:00:11.6]} 35. Ke2 {[%clk 0:00:19.2]} 35... hxg5 {[%clk
0:00:10.6]} 36. hxg5 {[%clk 0:00:18.2]} 36... Qxg5 {[%clk 0:00:10.3]} 37. Bf3
{[%clk 0:00:18.4]} 37... Qe5+ {[%clk 0:00:10.2]} 38. Qxe5 {[%clk 0:00:18.7]}
38... Nxe5 {[%clk 0:00:11.1]} 39. Bg2 {[%clk 0:00:19.5]} 39... Nc6 {[%clk
0:00:10.6]} 40. Kd3 {[%clk 0:00:19.2]} 40... Nxb4+ {[%clk 0:00:10.9]} 41. Kd4
{[%clk 0:00:19.7]} 41... Nc2+ {[%clk 0:00:10.6]} 42. Kc3 {[%clk 0:00:19.1]}
42... Na3 {[%clk 0:00:08.7]} 43. Kb4 {[%clk 0:00:18.8]} 43... Nc4 {[%clk
0:00:09]} 44. Kxb5 {[%clk 0:00:18.9]} 44... Kf8 {[%clk 0:00:09.5]} 45. Kc5
{[%clk 0:00:19]} 45... Ke7 {[%clk 0:00:09.9]} 46. Kd4 {[%clk 0:00:19.1]} 46...
Kf6 {[%clk 0:00:10.4]} 47. Kd3 {[%clk 0:00:19.1]} 47... Ne5+ {[%clk 0:00:11.3]}
48. Ke3 {[%clk 0:00:18.8]} 48... Ng6 {[%clk 0:00:12.2]} 49. Kd4 {[%clk
0:00:17.7]} 49... Nf4 {[%clk 0:00:11.4]} 50. Bf1 {[%clk 0:00:18.2]} 50... g5
{[%clk 0:00:12.3]} 51. Kc5 {[%clk 0:00:17.5]} 51... Ke5 {[%clk 0:00:11.9]} 52.
Kb4 {[%clk 0:00:16.2]} 52... f5 {[%clk 0:00:12.8]} 53. Kc3 {[%clk 0:00:16.4]}
53... Ke4 {[%clk 0:00:12.6]} 54. Kd2 {[%clk 0:00:16.4]} 54... Kf3 {[%clk
0:00:12.8]} 55. Ke1 {[%clk 0:00:15.9]} 55... d4 {[%clk 0:00:13.2]} 56. Bb5
{[%clk 0:00:15.2]} 56... g4 {[%clk 0:00:12.8]} 57. Bc6+ {[%clk 0:00:15.2]} 57...
Nd5 {[%clk 0:00:12.8]} 58. Bd7 {[%clk 0:00:12.8]} 58... Nc7 {[%clk 0:00:12.8]}
59. Bc6+ {[%clk 0:00:12.7]} 59... Kf4 {[%clk 0:00:13.2]} 60. Kd2 {[%clk
0:00:11.7]} 60... e5 {[%clk 0:00:13.4]} 61. Kd3 {[%clk 0:00:10.6]} 61... Ne6
{[%clk 0:00:13.4]} 62. Kd2 {[%clk 0:00:08.7]} 62... Ng5 {[%clk 0:00:13.8]} 63.
Bd7 {[%clk 0:00:08.2]} 63... Ne4+ {[%clk 0:00:13.4]} 64. Ke1 {[%clk 0:00:08.2]}
64... Nc5 {[%clk 0:00:12.6]} 65. Bc8 {[%clk 0:00:07.8]} 65... e4 {[%clk
0:00:12.6]} 66. Kd2 {[%clk 0:00:07.8]} 66... Ke5 {[%clk 0:00:12.5]} 67. Ke2
{[%clk 0:00:07.3]} 67... Ne6 {[%clk 0:00:12.9]} 68. Ke1 {[%clk 0:00:07.3]} 68...
Nf4 {[%clk 0:00:13.2]} 69. Kf1 {[%clk 0:00:07.2]} 69... Nd5 {[%clk 0:00:12.7]}
70. Ke2 {[%clk 0:00:07.2]} 70... d3+ {[%clk 0:00:12.5]} 71. Kd2 {[%clk
0:00:07.1]} 71... Nf6 {[%clk 0:00:12.2]} 72. Ke3 {[%clk 0:00:05.6]} 72... f4+
{[%clk 0:00:12]} 73. Kd2 {[%clk 0:00:05.6]} 73... Kd4 {[%clk 0:00:12.6]} 74. Ke1
{[%clk 0:00:05.1]} 74... e3 {[%clk 0:00:12.3]} 75. fxe3+ {[%clk 0:00:06]} 75...
fxe3 {[%clk 0:00:13.2]} 76. Kd1 {[%clk 0:00:06.2]} 76... g3 {[%clk 0:00:13.3]}
77. Bh3 {[%clk 0:00:04.9]} 77... Ne4 {[%clk 0:00:13]} 78. Ke1 {[%clk 0:00:04.5]}
78... d2+ {[%clk 0:00:12]} 79. Ke2 {[%clk 0:00:04.7]} 79... Nc3+ {[%clk
0:00:11.9]} 0-1